[Event "American Cup Elimination 2023"]
[Site "Saint Louis"]
[Date "2023.03.19"]
[Round "1.1"]
[White "Aronian, Levon"]
[Black "Sevian, Samuel"]
[Result "1-0"]
[ECO "C77"]
[WhiteElo "2745"]
[BlackElo "2687"]
[Annotator "TA"]
[PlyCount "89"]
[EventDate "2023.03.15"]
[EventType "k.o."]
[EventCountry "USA"]
[SourceTitle "playchess.com"]
[Source "ChessBase"]
[SourceQuality "1"]
[TimeControl "1500+10"]

{[%evp 13,89,8,25,22,22,15,28,43,48,43,45,38,42,53,33,29,18,14,9,23,8,21,61,61,77,75,81,68,75,77,84,77,75,42,39,22,92,110,72,55,95,33,52,61,52,37,41,42,43,38,260,255,235,263,498,314,397,397,386,376,371,358,466,474,1081,1060,1073,1023,1444,1411,1799,1671,29977,29978,29978,29979,29969,29966]} 1. e4 {[%emt 0:00:02]} e5 {[%emt 0:00:02]} 2. Nf3 {[%emt 0:00:02]} Nc6 {[%emt 0:00:02]} 3. Bb5 {[%emt 0:00:02][%cal Bf1b5,Bb5a4,Ba4b3][%mdl 32]} a6 {[%emt 0:00:03]} 4. Ba4 {[%emt 0:00:02]} Nf6 {[%emt 0:00:04]} 5. d3 {[%emt 0:00:02]} Bc5 {[%emt 0:00:02]} 6. c3 {[%emt 0:00:03]} b5 {[%emt 0:00:47]} 7. Bb3 {[%emt 0:00:05]} d6 {[%emt 0:00:08]} 8. Bg5 $1 {[%emt 0:00:04][%cal Bc1g5,Bg5h4,Bh4g3][%mdl 4] is recently more successful than 8.0-0. C77: Ruy Lopez: 3...a6 4 Ba4 Nf6, unusual lines.} h6 {[%emt 0:01:55]} 9. Bh4 {[%emt 0:00:07]} Bd7 {[%emt 0:02:04]} 10. Nbd2 {[%emt 0:02:03] White has an edge.} Qe7 {[%emt 0:04:28]} 11. O-O {[%emt 0:03:48]} g5 {[%emt 0:00:33]} 12. Bg3 {[%emt 0:00:02] [#]} Bb6 $146 {[%emt 0:01:06]} ({Predecessor:} 12... O-O 13. Re1 Bb6 14. d4 Rae8 15. Nf1 Qd8 16. dxe5 Nxe5 17. Bxe5 dxe5 18. Ng3 Qe7 {1-0 Sirosh,I (2402)-Sinitsina,A (2175) Viljandi Raud Memorial 56th 2022 (7)}) 13. a4 {[%emt 0:01:19] axb5 would be deadly.} Rb8 {[%emt 0:00:02]} 14. axb5 {[%emt 0:01:03]} axb5 {[%emt 0:00:02]} 15. Re1 {[%emt 0:00:04][%cal Od3d4]} h5 {[%emt 0:01:34] [#] Threatens to win with ...h4.} 16. h4 $1 {[%emt 0:00:02]} (16. Nxg5 h4 $17) 16... g4 {[%emt 0:00:04]} 17. Nh2 {[%emt 0:00:03]} Nh7 {[%emt 0:01:11]} 18. Nhf1 {[%emt 0:00:31]} Nf8 {[%emt 0:00:44]} 19. Ne3 {[%emt 0:01:29]} Bxe3 {[%emt 0:02:59]} 20. fxe3 {[%emt 0:00:04]} (20. Rxe3 Ng6 $11) 20... Ng6 {[%emt 0:00:01]} 21. Rf1 {[%emt 0:00:03]} Be6 {[%emt 0:00:01]} 22. Bd5 {[%emt 0:05:07]} Nd8 {[%emt 0:00:17]} 23. Ra7 {[%emt 0:00:02] White is more active.} Nxh4 {[%emt 0:04:51]} 24. Rxc7 {[%emt 0:00:05][%mdl 64] Deflection} (24. Bxh4 {is interesting.} Qxh4 25. Rxc7 O-O 26. d4) 24... Nf3+ {[%emt 0:01:21]} (24... Qxc7 $11 25. Bxh4 Nc6) 25. Nxf3 $16 {[%emt 0:00:02]} Qxc7 {[%emt 0:00:01] [#]} 26. Nh4 {[%emt 0:00:03]} Nc6 {[%emt 0:02:38]} 27. Nf5 {[%emt 0:02:03]} ({Better is} 27. d4 $16) 27... Bxf5 {[%emt 0:01:18]} 28. Rxf5 {[%emt 0:00:02]} h4 $1 {[%emt 0:00:02]} 29. Rxf7 {[%emt 0:03:03]} (29. Be1 $5 {[%cal Rd1g4]} g3 30. Rh5 Rxh5 31. Qxh5 $16) 29... Qxf7 {[%emt 0:00:02]} 30. Bxf7+ {[%emt 0:00:02]} Kxf7 {[%emt 0:00:01]} 31. Be1 {[%emt 0:00:16]} h3 $2 {[%emt 0:00:48] This costs Black the game.} (31... g3 $1 $14) 32. Bg3 $18 {[%emt 0:00:16]} (32. Qxg4 $6 Rbg8 33. Qf3+ (33. Qd7+ Ne7 $11) 33... Ke7 $16) 32... Ne7 {[%emt 0:00:07]} 33. d4 {[%emt 0:00:36]} (33. Qxg4 Rbg8 34. Qf3+ Ke8 $17) 33... hxg2 $2 {[%emt 0:00:12]} (33... Rh6 {was necessary.} 34. dxe5 dxe5 35. Bxe5 (35. Qxg4 Rg8 $17) 35... Rbb6 36. Qf1+ Kg8) 34. Kxg2 {[%emt 0:00:05]} (34. Qxg4 Rbg8 35. Qf3+ Ke8 36. Kxg2 (36. Qxg2 $2 Rxg3 37. Qxg3 Rg8 $19) 36... Rg5 37. dxe5 Rhg8 38. exd6 Rxg3+ 39. Qxg3 Rxg3+ 40. Kxg3 Nc6 $11) 34... Rh5 {[%emt 0:00:47]} 35. Qb3+ {[%emt 0:00:24]} (35. Qxg4 Rbh8 36. Kf1 Rh1+ 37. Kf2 R1h5 $18) (35. dxe5 dxe5 36. Kf2 Rbh8 37. Qb3+ Kf6 38. Qxb5 Ng6 $18) 35... Kf6 {[%emt 0:00:05]} 36. c4 {[%emt 0:00:08][%cal Bc3c4,Bc4c5,Bc5d6,Bd6d7][%mdl 32]} ({Don't play} 36. Qd1 Kf7 37. Qb3+ (37. Qxg4 Rbh8 $18) 37... Kf6 $18) 36... Ng6 {[%emt 0:00:10]} 37. Qb4 {[%emt 0:00:47]} ({Less strong is} 37. cxb5 Kg5 $16) 37... Ke6 {[%emt 0:00:12]} 38. c5 {[%emt 0:00:16]} ({Resist} 38. cxb5 Rhh8 39. b6 Rhd8 $18) 38... exd4 {[%emt 0:00:34]} (38... dxc5 $142 39. Qxc5 Re8 40. Qxb5 Kf7 41. Qd7+ Re7 42. Qxg4 Rh8) 39. Qb3+ {[%emt 0:01:52]} Kf6 {[%emt 0:00:03]} 40. exd4 {[%emt 0:00:03]} Re8 {[%emt 0:00:11]} 41. cxd6 {[%emt 0:00:37]} Rxe4 {[%emt 0:00:03]} 42. Qc2 {[%emt 0:00:31]} Nf4+ {[%emt 0:00:24]} 43. Bxf4 {[%emt 0:00:06] White mates.} Rxf4 {[%emt 0:00:02]} 44. d7 {[%emt 0:00:12]} Rh8 {[%emt 0:00:07]} 45. Qc8 {[%emt 0:00:24] A cool game by Aronian.   Weighted Error Value: White=0.14 (very precise) /Black=0.54} 1-0

[Event "American Cup Elimination 2023"]
[Site "Saint Louis"]
[Date "2023.03.19"]
[Round "1.1"]
[White "Shankland, Sam"]
[Black "Robson, Ray"]
[Result "1/2-1/2"]
[ECO "C67"]
[WhiteElo "2710"]
[BlackElo "2702"]
[Annotator "TA"]
[PlyCount "135"]
[EventDate "2023.03.15"]
[EventType "k.o."]
[EventCountry "USA"]
[SourceTitle "playchess.com"]
[Source "ChessBase"]
[SourceQuality "1"]
[TimeControl "1500+10"]

{[%evp 20,135,0,0,0,0,17,29,27,10,7,10,17,0,15,9,32,34,22,8,8,8,8,0,0,0,12,0,0,0,0,0,0,0,0,0,0,0,0,0,0,0,0,0,227,227,227,226,226,226,283,280,262,267,257,229,239,231,230,246,437,440,489,465,540,526,603,588,587,577,588,478,454,461,458,555,535,452,436,420,514,507,499,475,558,551,556,561,543,140,595,593,568,518,383,0,0,0,0,0,0,0,0,0,0,0,0,0,0,0,0,0,0,0,0,0,0,0]} 1. e4 {[%emt 0:00:01]} e5 {[%emt 0:00:05]} 2. Nf3 {[%emt 0:00:01]} Nc6 {[%emt 0:00:04]} 3. Bb5 {[%emt 0:00:02]} Nf6 {[%emt 0:00:16]} 4. O-O {[%emt 0:00:01]} Nxe4 {[%emt 0:00:08]} 5. d4 {[%emt 0:00:01]} Nd6 {[%emt 0:00:09]} 6. Bxc6 {[%emt 0:00:02]} dxc6 {[%emt 0:00:03]} 7. dxe5 {[%emt 0:00:01]} Nf5 {[%emt 0:00:10]} 8. Qxd8+ {[%emt 0:00:01]} Kxd8 {[%emt 0:00:03]} 9. Nc3 {[%emt 0:00:02]} Bd7 {[%emt 0:00:32]} 10. h3 {[%emt 0:00:01]} h6 {[%emt 0:00:29]} 11. b3 {[%emt 0:00:02]} c5 {[%emt 0:00:33] C67: Ruy Lopez: Berlin Defence: 4 0-0 Nxe4.} (11... Bb4 12. Ne2 $16) 12. Bb2 {[%emt 0:00:16]} Nd4 {[%emt 0:00:25]} 13. Nxd4 {[%emt 0:00:02]} cxd4 {[%emt 0:00:03] White has an edge.} 14. Ne4 {[%emt 0:00:01]} c5 {[%emt 0:00:21]} 15. c3 {[%emt 0:00:10]} dxc3 {[%emt 0:00:36]} 16. Bxc3 {[%emt 0:00:01]} Kc7 {[%emt 0:01:01]} 17. Rad1 {[%emt 0:01:42]} a5 {[%emt 0:02:06]} 18. f4 {[%emt 0:00:38]} a4 {[%emt 0:03:02] [#] Black is weak on the dark squares} 19. f5 $146 {[%emt 0:03:03][%cal Oe5e6]} ({Predecessor:} 19. Nd6 Bxd6 20. exd6+ Kb6 21. b4 cxb4 22. Bxb4 Rhe8 23. Rf2 Rac8 24. Rd4 Ka6 25. a3 {1-0 Hovhannisyan,R (2591)-Sadhwani,R (2611) Olympiad-44 Chennai 2022 (6.4)}) 19... axb3 {[%emt 0:00:16]} 20. axb3 {[%emt 0:00:01][%cal Oe5e6]} Bc6 {[%emt 0:02:37]} 21. Rfe1 {[%emt 0:02:20]} Ra2 {[%emt 0:01:12]} 22. g4 {[%emt 0:02:08]} Rc2 {[%emt 0:09:28]} 23. e6 {[%emt 0:01:12]} fxe6 {[%emt 0:00:57]} 24. fxe6 {[%emt 0:00:03] And now Be5+ would win.} Kb6 {[%emt 0:01:54]} 25. Rd3 {[%emt 0:01:50]} Be7 {[%emt 0:01:32]} 26. Nd2 {[%emt 0:00:51]} Ra8 {[%emt 0:01:16]} 27. Bxg7 {[%emt 0:01:50]} Bg5 {[%emt 0:00:09] This pair of bishops is nice.} 28. Nc4+ {[%emt 0:04:04]} Kb5 $1 {[%emt 0:00:01] Strongly threatening ...Raa2.} 29. e7 {[%emt 0:00:25]} Raa2 {[%emt 0:00:20] ( -> ...Rg2+)} 30. Bb2 $36 {[%emt 0:00:35][%mdl 2048] Black must now prevent Na3+. Black is under pressure.} Rg2+ {[%emt 0:00:11]} 31. Kf1 {[%emt 0:00:03] Rd6 would be deadly. Dancing on a razor blade.} Rgxb2 $2 {[%emt 0:00:10]} (31... Rh2 $1 $11 {and Black has nothing to worry.}) 32. Nxb2 $18 {[%emt 0:00:07]} (32. e8=B {leads to mate.} Rf2+ 33. Kg1 Rg2+ 34. Kh1 Rh2+ 35. Kg1 Rh1#) 32... Rxb2 {[%emt 0:00:01]} 33. e8=Q {[%emt 0:00:10]} ({Stronger than} 33. e8=N Bh4 34. Nd6+ Kb4 $11) ({Don't take} 33. e8=R Bxe8 34. Rxe8 c4 35. Re5+ Kb4 36. bxc4 Kxc4) 33... Bxe8 {[%emt 0:00:03]} 34. Rxe8 {[%emt 0:00:02][%mdl 4096] Endgame KRR-KRB} Kb4 {[%emt 0:00:25]} 35. Re4+ {[%emt 0:00:23]} Kb5 {[%emt 0:00:04]} 36. Re2 {[%emt 0:00:21]} Rb1+ {[%emt 0:00:09]} 37. Kg2 {[%emt 0:00:09]} Kb4 {[%emt 0:00:09]} 38. Re4+ {[%emt 0:00:15]} Kb5 {[%emt 0:00:06]} 39. Re6 {[%emt 0:00:33]} Ka5 $2 {[%emt 0:00:21] [#]} (39... c4 40. Rd5+ Kb4) 40. h4 $1 {[%emt 0:00:24][%mdl 64] Deflection} Bxh4 {[%emt 0:00:08]} (40... Bf4 41. Rf6) 41. Rxh6 {[%emt 0:00:01]} Rb2+ {[%emt 0:00:10]} 42. Kf3 {[%emt 0:00:39]} Be1 {[%emt 0:00:13]} 43. g5 {[%emt 0:00:48]} Rf2+ {[%emt 0:00:05]} 44. Ke4 {[%emt 0:00:47]} Bd2 {[%emt 0:00:15]} 45. Rf6 {[%emt 0:00:27]} Re2+ {[%emt 0:00:10]} 46. Kf5 {[%emt 0:00:48]} Rf2+ {[%emt 0:00:08]} 47. Kg6 {[%emt 0:00:06]} Rg2 {[%emt 0:00:03]} 48. Rd5 {[%emt 0:00:19]} b6 {[%emt 0:00:19]} 49. Re6 {[%emt 0:00:15]} Bc3 {[%emt 0:00:10]} 50. Kf7 {[%emt 0:00:38]} Bd4 {[%emt 0:00:09]} 51. g6 {[%emt 0:00:17]} b5 {[%emt 0:00:03]} 52. Rf5 {[%emt 0:00:39]} Kb4 {[%emt 0:00:12]} 53. Rf3 {[%emt 0:00:03]} Rg4 {[%emt 0:00:16]} 54. Rd6 $2 {[%emt 0:00:32]} (54. Re7 $18 {and White stays clearly on top.} Ka3 55. Re2) 54... Bc3 $2 {[%emt 0:00:09][%mdl 8192]} (54... c4 $16) 55. Rdd3 {[%emt 0:00:25]} Be5 {[%emt 0:00:11]} 56. Rd5 {[%emt 0:00:09]} Bd4 {[%emt 0:00:06] [#]} 57. Rxd4+ {[%emt 0:01:28]} Rxd4 {[%emt 0:00:06] KR-KR. The position is equal.} 58. g7 {[%emt 0:00:02]} Rg4 {[%emt 0:00:10]} 59. g8=Q {[%emt 0:00:08]} Rxg8 {[%emt 0:00:02]} 60. Kxg8 {[%emt 0:00:01]} c4 {[%emt 0:00:01] ...c3 is the strong threat.} 61. bxc4 {[%emt 0:00:01]} bxc4 $11 {[%emt 0:00:00][%cal Bb5c4,Bc4c3][%mdl 32] KR-KP} 62. Kf7 {[%emt 0:00:03]} c3 {[%emt 0:00:01]} 63. Ke6 {[%emt 0:00:02]} c2 {[%emt 0:00:01]} 64. Rf1 {[%emt 0:00:01]} Kc3 {[%emt 0:00:01]} 65. Kd5 {[%emt 0:00:01]} Kb2 {[%emt 0:00:00]} 66. Rf2 {[%emt 0:00:01]} Kb1 {[%emt 0:00:01]} 67. Rxc2 {[%emt 0:00:01]} Kxc2 {[%emt 0:00:02]} 68. Ke4 {[%emt 0:00:08] White really could win this.   Weighted Error Value: White=0.31/Black=0.31} 1/2-1/2

[Event "American Cup Elimination 2023"]
[Site "Saint Louis"]
[Date "2023.03.19"]
[Round "1.2"]
[White "Shankland, Sam"]
[Black "Robson, Ray"]
[Result "1-0"]
[ECO "C67"]
[WhiteElo "2710"]
[BlackElo "2702"]
[Annotator "TA"]
[PlyCount "115"]
[EventDate "2023.03.15"]
[EventType "k.o."]
[EventCountry "USA"]
[SourceTitle "playchess.com"]
[Source "ChessBase"]
[SourceQuality "1"]
[TimeControl "1500+10"]

{[%evp 20,115,-9,-20,0,0,27,39,35,36,51,46,50,50,56,48,56,49,62,47,67,54,75,77,109,113,103,58,90,46,85,72,100,100,96,83,285,88,116,92,114,111,119,115,108,52,165,152,156,147,645,627,638,631,647,631,904,730,729,739,723,726,720,702,969,938,1114,1112,1080,1083,1429,1087,1070,1050,1008,986,1525,1369,1014,778,29967,6444,29967,1489,2002,1891,5314,2676,1947,1869,29982,29983,29983,29984,29982,29983,29989,29990]} 1. e4 {[%emt 0:15:11]} e5 {[%emt 0:15:13]} 2. Nf3 {[%emt 0:00:06]} Nc6 {[%emt 0:00:08]} 3. Bb5 {[%emt 0:00:05]} Nf6 {[%emt 0:00:09]} 4. O-O {[%emt 0:00:07]} Nxe4 {[%emt 0:00:08]} 5. d4 {[%emt 0:00:05]} Nd6 {[%emt 0:00:09]} 6. Bxc6 {[%emt 0:00:06]} dxc6 {[%emt 0:00:08]} 7. dxe5 {[%emt 0:00:06]} Nf5 {[%emt 0:00:09]} 8. Qxd8+ {[%emt 0:00:07]} Kxd8 {[%emt 0:00:07]} 9. Nc3 {[%emt 0:00:06]} Bd7 {[%emt 0:00:12]} 10. h3 {[%emt 0:00:06]} h6 {[%emt 0:00:09]} 11. b3 {[%emt 0:00:07]} c5 {[%emt 0:00:10] C67: Ruy Lopez: Berlin Defence: 4 0-0 Nxe4.} ({Resist} 11... Bb4 12. Ne4 $16) 12. Nd5 {[%emt 0:00:06]} Nd4 {[%emt 0:01:16]} 13. Nxd4 {[%emt 0:00:08]} cxd4 {[%emt 0:00:07] White is slightly better.} 14. Rd1 {[%emt 0:00:06] [#]} c6 $146 {[%emt 0:00:17]} ({Predecessor:} 14... c5 15. c3 dxc3 16. Be3 c2 17. Rd2 b6 18. Rc1 Kc8 19. Rcxc2 Be6 20. b4 Kb7 21. bxc5 Bxc5 22. Bxc5 {½-½ Martin,A (2395)-Nemec,Z (2367) SM-2015-0-00338}) 15. Nf4 {[%emt 0:00:30]} g5 {[%emt 0:02:23]} 16. Nh5 {[%emt 0:00:45]} Kc7 {[%emt 0:01:34]} 17. Rxd4 {[%emt 0:00:51]} Bc5 {[%emt 0:00:42]} 18. Rc4 {[%emt 0:02:01]} Be7 {[%emt 0:00:28]} 19. Bb2 {[%emt 0:00:28][%cal Oe5e6]} Rhd8 {[%emt 0:00:15]} 20. Re4 {[%emt 0:00:25]} Bf5 {[%emt 0:00:34] [#]} 21. Re2 {[%emt 0:00:09]} Rd5 {[%emt 0:01:13]} 22. g4 {[%emt 0:01:53]} Bg6 {[%emt 0:01:28]} 23. Ng3 {[%emt 0:00:31]} Rad8 {[%emt 0:00:18]} 24. Nf5 {[%emt 0:00:18]} Bf8 {[%emt 0:00:11]} 25. Rae1 {[%emt 0:00:25]} a5 {[%emt 0:00:31]} 26. Kg2 {[%emt 0:00:13]} a4 {[%emt 0:00:12]} 27. Bc3 {[%emt 0:00:42] Prevents Bb4} R8d7 $2 {[%emt 0:00:30]} (27... axb3 $16 28. axb3 (28. cxb3 Rd3 $14) 28... Re8) 28. Re3 $2 {[%emt 0:00:17]} ({Less strong is} 28. bxa4 Rd1 29. Kg3 Rxe1 30. Rxe1 Rd5 $16) (28. Ne3 $18) 28... b5 {[%emt 0:00:16]} 29. R1e2 {[%emt 0:00:30] White is more active.} b4 {[%emt 0:00:13] [#]} 30. Be1 {[%emt 0:00:06]} a3 {[%emt 0:00:18]} 31. Nd6 {[%emt 0:00:36]} Rd4 {[%emt 0:00:40]} 32. c3 {[%emt 0:00:22]} ({White should play} 32. f3 $16) 32... bxc3 {[%emt 0:00:08]} (32... Rd3 $14) 33. Bxc3 $18 {[%emt 0:00:06]} Rd1 {[%emt 0:00:15]} 34. Bb4 {[%emt 0:00:21]} Bg7 $2 {[%emt 0:00:13][%mdl 8192]} (34... h5 $16 35. gxh5 (35. Bxa3 hxg4 36. hxg4 Rd8 $16) 35... Bxh5) 35. Ne8+ {[%emt 0:00:08]} Kb6 {[%emt 0:00:08]} 36. Nxg7 {[%emt 0:00:07]} c5 {[%emt 0:00:12]} 37. Bxa3 {[%emt 0:00:25]} Ra7 {[%emt 0:00:08]} 38. b4 {[%emt 0:00:12]} Bd3 {[%emt 0:00:09]} 39. bxc5+ {[%emt 0:00:12]} Kc6 {[%emt 0:00:07]} 40. Bb4 {[%emt 0:00:21]} Bxe2 {[%emt 0:00:09]} 41. Rxe2 {[%emt 0:00:06]} Ra1 {[%emt 0:00:15]} 42. a3 {[%emt 0:00:06]} Rd7 {[%emt 0:00:06]} 43. e6 {[%emt 0:00:22]} fxe6 {[%emt 0:00:11]} 44. Rxe6+ {[%emt 0:00:06]} Kb5 {[%emt 0:00:08]} 45. Nf5 {[%emt 0:00:08]} Rdd1 {[%emt 0:00:15]} 46. c6 {[%emt 0:00:09]} Rac1 {[%emt 0:00:10]} 47. Rxh6 {[%emt 0:00:12]} Rh1 {[%emt 0:00:12]} 48. Ng3 {[%emt 0:00:13]} Rhg1+ {[%emt 0:00:08]} 49. Kf3 {[%emt 0:00:06] And now Ne2 would win.} Kc4 {[%emt 0:00:10]} 50. Bd2 {[%emt 0:00:10]} (50. Ne2 $142 Kb5 51. Bd2 Rc4 52. Nxg1 Ra4 53. Bxg5 Rxa3+ 54. Kf4 Ra4+ 55. Kf5) 50... Rc2 {[%emt 0:00:10]} 51. Bxg5 {[%emt 0:00:07]} (51. Nf5 $142 Rxd2 52. c7 Kb3 53. c8=Q Ka2 54. Rb6 Rb2 55. Qg8+ Kb1 56. Rxb2+ Kxb2 57. Nd4) 51... Rb1 {[%emt 0:00:10]} 52. Be3 {[%emt 0:00:07]} Rb8 {[%emt 0:00:11]} 53. c7 {[%emt 0:00:08]} Rf8+ {[%emt 0:00:10]} 54. Nf5 {[%emt 0:00:08] White threatens Rc6+ and mate.} Ra2 {[%emt 0:00:11] [#]} 55. c8=Q+ $1 {[%emt 0:00:10] White mates.} Rxc8 {[%emt 0:00:09]} 56. Nd6+ {[%emt 0:00:05]} Kd3 {[%emt 0:00:09]} 57. Nxc8 {[%emt 0:00:09]} Rc2 {[%emt 0:00:07]} 58. Rd6+ {[%emt 0:00:07] Weighted Error Value: White=0.18 (very precise) /Black=0.55} 1-0

[Event "American Cup Elimination 2023"]
[Site "Saint Louis"]
[Date "2023.03.20"]
[Round "1.2"]
[White "Robson, Ray"]
[Black "Shankland, Sam"]
[Result "1/2-1/2"]
[ECO "B92"]
[WhiteElo "2702"]
[BlackElo "2710"]
[Annotator "TA"]
[PlyCount "73"]
[EventDate "2023.03.15"]
[EventType "k.o."]
[EventCountry "USA"]
[SourceTitle "playchess.com"]
[Source "ChessBase"]
[SourceQuality "1"]
[TimeControl "1500+10"]

{[%evp 15,73,14,14,14,8,0,7,4,14,9,9,0,0,0,0,0,54,38,30,15,30,29,25,17,15,0,3,0,0,0,0,0,0,0,0,0,0,0,0,0,0,0,0,0,0,0,0,0,0,0,0,0,0,0,0,0,0,0,0,0]} 1. e4 {[%emt 0:22:17]} c5 {[%emt 0:22:16]} 2. Nf3 {[%emt 0:00:09]} d6 {[%emt 0:00:09]} 3. d4 {[%emt 0:00:09]} cxd4 {[%emt 0:00:08]} 4. Nxd4 {[%emt 0:00:09]} Nf6 {[%emt 0:00:09]} 5. Nc3 {[%emt 0:00:09]} a6 {[%emt 0:00:08]} 6. Be2 {[%emt 0:00:13]} e5 {[%emt 0:00:10]} 7. Nb3 {[%emt 0:00:14]} Be6 {[%emt 0:00:10]} 8. O-O {[%emt 0:00:12]} Be7 {[%emt 0:00:12]} 9. Re1 {[%emt 0:00:18] B92: Sicilian Najdorf: 6 Be2.} O-O {[%emt 0:00:12]} 10. Bf3 {[%emt 0:00:13]} Nbd7 {[%emt 0:00:19]} 11. a4 {[%emt 0:00:11][%cal Ba2a4,Ba4a5][%mdl 32]} Qb8 {[%emt 0:00:11]} 12. a5 {[%emt 0:00:17] 12.Qd3 gains popularity.} Rc8 {[%emt 0:00:09]} 13. h3 {[%emt 0:00:31]} Bd8 {[%emt 0:00:17] [#]} 14. Be3 $146 {[%emt 0:00:48]} ({Predecessor:} 14. Nd2 Rc5 15. Na4 Rc6 16. Nc3 Rc5 17. Na4 Rc8 18. Nc3 b6 19. axb6 Nxb6 20. Nf1 {½-½ Kosteniuk,A (2472)-Ju,W (2518) RUS-CHN Summit (Women) 8th 2012 (1)}) 14... b5 {[%emt 0:00:13]} 15. axb6 {[%emt 0:00:16]} Bxb3 {[%emt 0:00:12]} (15... Bxb6 $11 16. Nd2 a5) 16. cxb3 {[%emt 0:00:13]} (16. b7 {keeps more tension.} Qxb7 17. cxb3 Bb6 18. Qxd6 Bxe3 19. Rxe3 Qxb3 20. Nd5) 16... Bxb6 {[%emt 0:00:09]} 17. Bg4 {[%emt 0:00:31]} (17. g4 $5 {[%cal Rg4g5]}) 17... Bxe3 {[%emt 0:01:00]} 18. Rxe3 {[%emt 0:00:09]} Rd8 {[%emt 0:00:09]} 19. Bxd7 {[%emt 0:00:12]} Rxd7 {[%emt 0:00:09] The position is equal.} 20. Rf3 {[%emt 0:00:30][%cal Of3f6] [#] Strongly threatening Rxf6!} Qd8 {[%emt 0:00:14]} 21. b4 {[%emt 0:00:16]} d5 {[%emt 0:00:25]} 22. exd5 {[%emt 0:00:16]} Nxd5 {[%emt 0:00:09]} 23. Nxd5 {[%emt 0:00:13]} Rxd5 {[%emt 0:00:09]} 24. Qe2 {[%emt 0:00:13]} g6 {[%emt 0:00:46]} 25. Rxa6 {[%emt 0:00:08]} Rxa6 {[%emt 0:00:12]} 26. Qxa6 $11 {[%emt 0:00:17][%mdl 4096] Endgame KQR-KQR} e4 {[%emt 0:00:11]} 27. Rf4 {[%emt 0:00:19]} Rd1+ {[%emt 0:00:39]} (27... Qc7 $5 28. g3 $8 (28. Rxe4 $2 {too greedy.} Rd1+ $19) (28. Qa8+ $2 Rd8 $19) 28... e3 $11) 28. Kh2 {[%emt 0:00:09]} f5 {[%emt 0:00:14]} 29. Qe6+ {[%emt 0:00:13]} Kg7 {[%emt 0:00:10]} 30. g4 {[%emt 0:00:13]} Qc7 {[%emt 0:00:14]} 31. Kg2 $1 {[%emt 0:00:11]} Qxf4 {[%emt 0:00:23]} 32. Qe7+ {[%emt 0:00:09]} Kg8 {[%emt 0:00:09]} 33. Qe8+ $1 {[%emt 0:00:09]} Kg7 {[%emt 0:00:08]} 34. Qe7+ Kg8 35. Qe8+ $1 {[%emt 0:00:17]} Kg7 {[%emt 0:00:17]} 36. Qe7+ {[%emt 0:00:09]} Kg8 {[%emt 0:00:09] [#] ( -> ...Qf3+)} 37. Qe8+ $1 {[%emt 0:00:03] Weighted Error Value: White=0.02 (flawless) /Black=0.04 (flawless)} 1/2-1/2